Workbook

Sheet Sheet1
A1: BEATS
B2: Two waves (shown in red and green) traveling together but with different wavelengths undergo alternating
B3: constructive and destructive interference, leading to "beats" as they pass an observer. | M3: wave #1 | N3: wave #2
B4: The resultant wave is shown in yellow. Enable macros for the controls to work. | J4: time | L4: wavenumber | M4: 0.6981111111 | N4: 0.6283
J5: 0 | L5: amplitude | M5: 1 | N5: 1
B6: wave #1 | E6: wave #2 | L6: ang.freq. | M6: =10*M4 -> 6.981111111 | N6: =10*N4 -> 6.283
B7: wavelength | C7: amplitude | E7: wavelength | F7: amplitude | H7: time | L7: phase | N7: 0
L8: wavelength | M8: =2*3.1415926/M4 -> 9.000265287 | N8: =2*3.1415926/N4 -> 10.00029476
L9: x
L10: 1 | M10: =$M$5*COS($M$4*L10-$M$6*$J$5) -> 0.7660576778 | N10: =$N$5*COS($N$4*$L10-$N$6*$J$5+$N$7) -> 0.8090278863 | O10: =M10+N10 -> 1.575085564
E11: phase | L11: 2 | M11: =$M$5*COS($M$4*L11-$M$6*$J$5) -> 0.1736887313 | N11: =$N$5*COS($N$4*$L11-$N$6*$J$5+$N$7) -> 0.3090522417 | O11: =M11+N11 -> 0.482740973
L12: 3 | M12: -0.4999465055 | N12: -0.3089641226 | O12: -0.8089106281
L13: 4 | M13: -0.9396644492 | N13: -0.8089734238 | O13: -1.748637873
L14: 5 | M14: -0.9397278262 | N14: -0.9999999957 | O14: -1.939727822
L15: 6 | M15: -0.5001069833 | N15: -0.8090823419 | O15: -1.309189325
L16: 7 | M16: 0.1735062377 | N16: -0.3091403581 | O16: -0.1356341204
L17: 8 | M17: 0.7659385544 | N17: 0.3088760009 | O17: 1.074814555
L18: 9 | M18: 0.9999999828 | N18: 0.8089189544 | O18: 1.808918937
L19: 10 | M19: 0.7661767748 | N19: 0.9999999828 | O19: 1.766176758
L20: 11 | M20: 0.1738712189 | N20: 0.8091367905 | O20: 0.9830080094
L21: 12 | M21: -0.4997860104 | N21: 0.3092284719 | O21: -0.1905575386
L22: 13 | M22: -0.93960104 | N22: -0.3087878765 | O22: -1.248388917
L23: 14 | M23: -0.939791171 | N23: -0.808864478 | O23: -1.748655649
L24: 15 | M24: -0.500267444 | N24: -0.9999999614 | O24: -1.500267405
L25: 16 | M25: 0.1733237381 | N25: -0.8091912321 | O25: -0.635867494
L26: 17 | M26: 0.7658194047 | N26: -0.309316583 | O26: 0.4565028217
L27: 18 | M27: 0.9999999313 | N27: 0.3086997495 | O27: 1.308699681
L28: 19 | M28: 0.7662958456 | N28: 0.8088099947 | O28: 1.57510584
L29: 20 | M29: 0.1740537006 | N29: 0.9999999313 | O29: 1.174053632
L30: 21 | M30: -0.4996254982 | N30: 0.8092456669 | O30: 0.3096201686
L31: 22 | M31: -0.9395375985 | N31: 0.3094046914 | O31: -0.6301329071
L32: 23 | M32: -0.9398544834 | N32: -0.3086116198 | O32: -1.248466103
L33: 24 | M33: -0.5004278875 | N33: -0.8087555044 | O33: -1.309183392
L34: 25 | M34: 0.1731412326 | N34: -0.9999998927 | O34: -0.8268586601
L35: 26 | M35: 0.7657002287 | N35: -0.8093000946 | O35: -0.04359986593
L36: 27 | M36: 0.9999998455 | N36: -0.3094927972 | O36: 0.6905070483
L37: 28 | M37: 0.7664148901 | N37: 0.3085234875 | O37: 1.074938378
L38: 29 | M38: 0.1742361763 | N38: 0.8087010072 | O38: 0.9829371835
L39: 30 | M39: -0.4994649689 | N39: 0.9999998455 | O39: 0.5005348766
L40: 31 | M40: -0.9394741247 | N40: 0.8093545154 | O40: -0.1301196092
L41: 32 | M41: -0.9399177636 | N41: 0.3095809003 | O41: -0.6303368633
L42: 33 | M42: -0.5005883139 | N42: -0.3084353526 | O42: -0.8090236664
L43: 34 | M43: 0.1729587212 | N43: -0.808646503 | O43: -0.6356877819
L44: 35 | M44: 0.7655810264 | N44: -0.9999997897 | O44: -0.2344187633
L45: 36 | M45: 0.9999997253 | N45: -0.8094089293 | O45: 0.190590796
L46: 37 | M46: 0.7665339082 | N46: -0.3096690008 | O46: 0.4568649074
L47: 38 | M47: 0.174418646 | N47: 0.3083472149 | O47: 0.4827658609
L48: 39 | M48: -0.4993044224 | N48: 0.8085919919 | O48: 0.3092875695
L49: 40 | M49: -0.9394106186 | N49: 0.9999997253 | O49: 0.06058910667
L50: 41 | M50: -0.9399810115 | N50: 0.8094633362 | O50: -0.1305176753
L51: 42 | M51: -0.500748723 | N51: 0.3097570986 | O51: -0.1909916244
L52: 43 | M52: 0.1727762038 | N52: -0.3082590747 | O52: -0.1354828709
L53: 44 | M53: 0.7654617978 | N53: -0.8085374739 | O53: -0.04307567603
L54: 45 | M54: 0.9999995708 | N54: -0.9999996523 | O54: -8.155452258e-08
L55: 46 | M55: 0.7666529 | N55: -0.8095177362 | O55: -0.04286483617
L56: 47 | M56: 0.1746011097 | N56: -0.3098451938 | O56: -0.1352440841
L57: 48 | M57: -0.4991438588 | N57: 0.3081709318 | O57: -0.190972927
L58: 49 | M58: -0.9393470803 | N58: 0.8084829489 | O58: -0.1308641314
L59: 50 | M59: -0.9400442271 | N59: 0.9999995708 | O59: 0.05995534362
L60: 51 | M60: -0.5009091149 | N60: 0.8095721292 | O60: =M60+N60 -> 0.3086630143
L61: 52 | M61: 0.1725936804 | N61: 0.3099332863 | O61: =M61+N61 -> 0.4825269667
L62: 53 | M62: 0.765342543 | N62: -0.3080827862 | O62: =M62+N62 -> 0.4572597568
L63: 54 | M63: 0.9999993819 | N63: -0.808428417 | O63: 0.1915709649
L64: 55 | M64: 0.7667718655 | N64: -0.9999994806 | O64: -0.2332276151
L65: 56 | M65: 0.1747835674 | N65: -0.8096265153 | O65: -0.6348429479
L66: 57 | M66: -0.498983278 | N66: -0.3100213761 | O66: -0.8090046541
L67: 58 | M67: -0.9392835097 | N67: 0.307994638 | O67: -0.6312888717
L68: 59 | M68: -0.9401074105 | N68: 0.8083738781 | O68: -0.1317335324
L69: 60 | M69: -0.5010694897 | N69: 0.9999993819 | O69: 0.4989298922
L70: 61 | M70: 0.1724111512 | N70: 0.8096808944 | O70: 0.9820920456
L71: 62 | M71: 0.7652232618 | N71: 0.3101094633 | O71: 1.075332725
L72: 63 | M72: 0.9999991587 | N72: -0.3079064872 | O72: 0.6920926715
L73: 64 | M73: 0.7668908047 | N73: -0.8083193323 | O73: -0.04142852761
L74: 65 | M74: 0.1749660192 | N74: -0.9999992746 | O74: -0.8250332554
L75: 66 | M75: =$M$5*COS($M$4*L75-$M$6*$J$5) -> -0.49882268 | N75: =$N$5*COS($N$4*$L75-$N$6*$J$5+$N$7) -> -0.8097352666 | O75: -1.308557947
L76: 67 | M76: -0.9392199069 | N76: -0.3101975478 | O76: -1.249417455
L77: 68 | M77: -0.9401705616 | N77: 0.3078183337 | O77: -0.6323522279
L78: 69 | M78: -0.5012298472 | N78: 0.8082647796 | O78: 0.3070349323
L79: 70 | M79: 0.172228616 | N79: 0.9999991587 | O79: 1.172227775
L80: 71 | M80: 0.7651039544 | N80: 0.8097896318 | O80: 1.574893586
L81: 72 | M81: 0.9999989012 | N81: 0.3102856297 | O81: 1.310284531
L82: 73 | M82: 0.7670097175 | N82: -0.3077301775 | O82: 0.45927954
L83: 74 | M83: 0.1751484649 | N83: -0.8082102199 | O83: -0.633061755
L84: 75 | M84: -0.498662065 | N84: -0.9999990342 | O84: -1.498661099
L85: 76 | M85: -0.9391562719 | N85: -0.8098439901 | O85: -1.749000262
L86: 77 | M86: -0.9402336803 | N86: -0.3103737089 | O86: -1.250607389
L87: 78 | M87: -0.5013901875 | N87: 0.3076420188 | O87: -0.1937481688
L88: 79 | M88: 0.1720460749 | N88: 0.8081556533 | O88: 0.9802017281
L89: 80 | M89: 0.7649846208 | N89: 0.9999989012 | O89: 1.764983522
L90: 81 | M90: 0.9999986093 | N90: 0.8098983414 | O90: 1.809896951
L91: 82 | M91: 0.767128604 | N91: 0.3104617854 | O91: 1.077590389
L92: 83 | M92: 0.1753309046 | N92: -0.3075538574 | O92: -0.1322229528
L93: 84 | M93: -0.4985014328 | N93: -0.8081010797 | O93: -1.306602513
L94: 85 | M94: -0.9390926045 | N94: -0.9999987595 | O94: -1.939091364
L95: 86 | M95: -0.9402967668 | N95: -0.8099526858 | O95: -1.750249453
L96: 87 | M96: -0.5015505107 | N96: -0.3105498593 | O96: -0.8121003699
L97: 88 | M97: 0.1718635279 | N97: 0.3074656933 | O97: 0.4793292212
L98: 89 | M98: 0.7648652608 | N98: 0.8080464992 | O98: 1.57291176
L99: 90 | M99: 0.9999982831 | N99: 0.9999986093 | O99: 1.999996892
L100: 91 | M100: 0.7672474642 | N100: 0.8100070232 | O100: 1.577254487
L101: 92 | M101: 0.1755133382 | N101: 0.3106379304 | O101: 0.4861512687
L102: 93 | M102: -0.4983407835 | N102: -0.3073775266 | O102: -0.8057183102
L103: 94 | M103: -0.939028905 | N103: -0.8079919118 | O103: -1.747020817
L104: 95 | M104: -0.940359821 | N104: -0.9999984505 | O104: -1.940358272
L105: 96 | M105: -0.5017108165 | N105: -0.8100613536 | O105: -1.31177217
L106: 97 | M106: 0.171680975 | N106: -0.310725999 | O106: -0.139045024
L107: 98 | M107: 0.7647458746 | N107: 0.3072893573 | O107: 1.072035232
L108: 99 | M108: 0.9999979225 | N108: 0.8079373174 | O108: 1.80793524
L109: 100 | M109: 0.767366298 | N109: 0.9999982831 | O109: 1.767364581
